Cogmind - Beta 10.1 @@@ ROGUE MODE // 2020.10.03 @ 21:31:03 // Winter2019/RPGLIKE Player: Trantor Result: Destroyed by D-53 Grenadier with Mini Grenade Launcher Performance ------------- Evolutions (0) 0 Regions Visited (4) 800 Robots Destroyed (58) 290 Value Destroyed (996) 996 Prototype IDs (2) 40 Alien Tech Used (0) 0 Bonus (7) 7 TOTAL SCORE: 2133 Bonus ------- Follower Combat Kills 7 Cogmind --------- Core Integrity 0/950 Matter 262/350 Energy 99/450 System Corruption 0% Temperature Cool (0) Movement Treading (160) Location -9/Mines Parts ------- > --- POWER (2) -------- Ion Engine Ion Engine > --- PROPULSION (2) --- Light Treads Medium Treads > --- UTILITY (4) ------ Improved Heat Sink Cooling System Improved Sensor Array Improved Shield Generator > --- WEAPON (3) ------- Lightning Gun Advanced Assault Cannon Rocket Launcher > --- INVENTORY (1) ---- Grenade Launcher Peak State ------------ > --- POWER ------------ Ion Engine Ion Engine > --- PROPULSION ------- Light Treads Medium Treads > --- UTILITY ---------- Improved Heat Sink Cooling System Improved Sensor Array Improved Shield Generator > --- WEAPON ----------- Lightning Gun Advanced Assault Cannon Rocket Launcher > --- INVENTORY -------- Grenade Launcher [Rating: 28] Favorites ----------- Power Ion Engine Engine Ion Engine Propulsion Light Treads Treads Light Treads Utility Improved Heat Sink Device Improved Heat Sink Weapon EM Pulse Gun Energy Gun EM Pulse Gun Ballistic Cannon Advanced Assault Cannon Launcher Grenade Launcher Build | -11 -10 -10 -10 -9 ------- Run | Scr Mat Min Exi Min Slots Evolved 7 | 4 1 1 . 1 Power 1 | 1 . . . . Propulsion 1 | 1 . . . . Utility 3 | 1 1 . . 1 Weapon 2 | 1 . 1 . . Parts Attached 26 | 6 7 6 . 7 Power 4 | 2 2 . . . Engine 4 | 2 2 . . . Core . | . . . . . Reactor . | . . . . . Propulsion 3 | 2 . . . 1 Treads 3 | 2 . . . 1 Leg . | . . . . . Wheel . | . . . . . Hover . | . . . . . Flight . | . . . . . Utility 6 | . 5 . . 1 Device 6 | . 5 . . 1 Storage . | . . . . . Processor . | . . . . . Hackware . | . . . . . Protection . | . . . . . Artifact . | . . . . . Weapon 13 | 2 . 6 . 5 Energy Gun 7 | 2 . 3 . 2 Energy Cannon . | . . . . . Ballistic Gun . | . . . . . Ballistic Cannon 2 | . . . . 2 Launcher 4 | . . 3 . 1 Special Weapon . | . . . . . Impact Weapon . | . . . . . Slashing Weapon . | . . . . . Piercing Weapon . | . . . . . Special Melee Weapon . | . . . . . Unidentified Prototypes . | . . . . . Parts Lost . | . . . . . Power . | . . . . . Propulsion . | . . . . . Utility . | . . . . . Weapon . | . . . . . Highest Loss Streak . | . . . . . Average Slot Usage (%) 98 | . 96 100 100 99 Engine 21 | . 23 20 20 19 Treads 21 | . 23 20 20 19 Device 29 | . 26 30 30 32 Energy Gun 20 | . 23 19 20 16 Launcher 6 | . . 8 10 9 Naked Turns . | . . . . . Heaviest Build 33 | 12 18 21 21 33 Greatest Support 48 | 40 40 40 40 48 Greatest Overweight (x) . | . . . . . Average Overweight (x) . | . . . . . Largest Inventory Capacity 1 | . 1 1 1 1 Average Capacity . | . . 1 1 1 Most Carried 1 | . 1 1 1 1 Average Carried . | . . . 1 1 Final Capacity 1 | . 1 1 1 1 Final Carried 1 | . 1 1 1 1 Class Distribution -------------------- 96% | Mutant 3% | Tank Dominant Class ---------------- Mutant | -10/Materials Mutant | -10/Mines Mutant | -10/Exiles Mutant | -9/Mines Resources | -11 -10 -10 -10 -9 ----------- Run | Scr Mat Min Exi Min Matter Collected 562 | 218 112 150 . 82 Remotely . | . . . . . Salvage Created 708 | . 334 156 . 218 Parts 83 | . 37 21 . 25 Haulers Intercepted . | . . . . . Recyclers Shooed 1 | . . 1 . . Parts Field Recycled . | . . . . . Retrieved Matter . | . . . . . Parts Self-Destructed . | . . . . . Prevented . | . . . . . Kills | -11 -10 -10 -10 -9 ------- Run | Scr Mat Min Exi Min Combat Hostiles Destroyed 51 | . 17 10 . 24 Guns 26 | . 15 5 . 6 Cannons 2 | . . . . 2 AOE 23 | . 2 5 . 16 Classes Destroyed 9 | . 4 3 . 2 Builder 1 | . . . . 1 Tunneler 1 | . . 1 . . Recycler 1 | . . 1 . . Operator 1 | . 1 . . . Watcher 3 | . 3 . . . Swarmer 15 | . 6 5 . 4 Grunt 18 | . 11 4 . 3 Demolisher 1 | . . . . 1 Assembled 17 | . . 1 . 16 Best Kill Streak 16 | . 5 4 . 16 Combat Bots Only 16 | . 4 4 . 16 Max Kills in Single Turn 9 | . 2 2 . 9 Gunslinging 1 | . 1 . . . Exploded 9 | . 1 2 . 9 Melee . | . . . . . Uniques/NPCs Destroyed . | . . . . . Combat | -11 -10 -10 -10 -9 -------- Run | Scr Mat Min Exi Min Damage Taken 2232 | . 763 216 . 1253 Core 1791 | . 617 167 . 1007 Absorbed by Shields 186 | . . . . 186 Redirected to Core 1440 | . 481 144 . 815 Core Remaining (%) 100 | 100 . . . . Volleys Fired 86 | . 48 19 . 19 Largest 3 | . 2 2 . 3 Hottest 110 | . 80 80 . 110 Shots Fired 175 | . 96 38 . 41 Gun 158 | . 96 34 . 28 Cannon 8 | . . . . 8 Launcher 9 | . . 4 . 5 Special . | . . . . . Kinetic 8 | . . . . 8 Thermal . | . . . . . Explosive 9 | . . 4 . 5 Electromagnetic 158 | . 96 34 . 28 Robot Hit Streak 13 | . 13 4 . 6 Robot Miss Streak 3 | . 3 2 . 3 Penetration Max . | . . . . . Secondary Targets 1 | . 1 . . . Max Gunslinging Chain 1 | . 1 . . . Shots Hit Robots 108 | . 65 22 . 21 Core Hits 96 | . 29 19 . 48 Critical Hits . | . . . . . Critical Kills . | . . . . . Critical Parts Destroyed . | . . . . . Melee Attacks . | . . . . . Impact . | . . . . . Slashing . | . . . . . Piercing . | . . . . . Sneak Attacks . | . . . . . Combat Hostiles . | . . . . . Follow-up Attacks . | . . . . . Damage Inflicted 3225 | . 1064 708 . 1453 Guns 1339 | . 882 230 . 227 Cannons 140 | . . . . 140 Explosions 1743 | . 179 478 . 1086 Melee . | . . . . . Ramming 3 | . 3 . . . Kinetic 140 | . . . . 140 Thermal 409 | . 179 127 . 103 Explosive 1334 | . . 351 . 983 Electromagnetic 1339 | . 882 230 . 227 Impact . | . . . . . Slashing . | . . . . . Piercing . | . . . . . Highest Corruption . | . . . . . Average Corruption . | . . . . . Corruption Purged . | . . . . . Overload Shots . | . . . . . Overflow Damage 23 | . 10 . . 13 Projectiles 1 | . . . . 1 Explosions 22 | . 10 . . 12 Melee . | . . . . . Knockbacks 1 | . . . . 1 Impact . | . . . . . Kinetic 1 | . . . . 1 Secondary . | . . . . . Self-Inflicted Damage 92 | . 63 29 . . Shots 4 | . 2 2 . . Rammed 1 | . 1 . . . Targets Rammed 1 | . 1 . . . Kicked . | . . . . . Crushed . | . . . . . Highest Temperature 63 | . 63 . . . Average Temperature 24 | . 24 . . . Received Heat Transfer 450 | . 369 54 . 27 Siege Activations . | . . . . . Robots Corrupted 1 | . . 1 . . Combat Hostiles . | . . . . . Parts Fried 8 | . 6 2 . . Impact Corruptions . | . . . . . Robots Melted . | . . . . . Combat Hostiles . | . . . . . Parts Melted 1 | . 1 . . . Heat Transferred 350 | . 100 200 . 50 Parts Sabotaged . | . . . . . Parts Stolen . | . . . . . Parts Stripped . | . . . . . Power Chain Reactions 7 | . 4 2 . 1 Missiles Intercepted . | . . . . . Alert | -11 -10 -10 -10 -9 ------- Run | Scr Mat Min Exi Min Peak Influence 251 | . 207 251 . 159 Initial 46 | . . 46 . . Average 63 | . 80 49 . 62 Maximum Alert Level 1 | . 1 1 . . Low Security (%) 95 | 100 89 97 . 100 Level 1 4 | . 10 2 . . Level 2 . | . . . . . Level 3 . | . . . . . Level 4 . | . . . . . Level 5 . | . . . . . High Security . | . . . . . Max Security . | . . . . . Squads Dispatched 3 | . 3 . . . Investigation 2 | . 2 . . . Extermination . | . . . . . Reinforcement 1 | . 1 . . . Assault . | . . . . . Garrison . | . . . . . Intercept . | . . . . . Construction Impeded . | . . . . . Haulers Reinforced . | . . . . . Stealth | -11 -10 -10 -10 -9 --------- Run | Scr Mat Min Exi Min Distress Signals 2 | . 2 . . . Communications Jammed . | . . . . . Distress Signals . | . . . . . Times Spotted 60 | . 27 10 . 23 Peak Tracking Total 20 | . 6 3 . 20 Tactical Retreats 6 | . 5 . . 1 Traps | -11 -10 -10 -10 -9 ------- Run | Scr Mat Min Exi Min Traps Triggered 3 | . 3 . . . Indirectly . | . . . . . Trap Hack Attempts . | . . . . . Triggered . | . . . . . Disarmed . | . . . . . Reprogrammed . | . . . . . Reused . | . . . . . Traps Extracted . | . . . . . Installed . | . . . . . Triggered . | . . . . . Machines | -11 -10 -10 -10 -9 ---------- Run | Scr Mat Min Exi Min Machines Disabled 7 | . 2 3 . 2 Max in Single Turn 3 | . 1 3 . 2 Machines Sabotaged . | . . . . . Garrisons Compromised . | . . . . . Overloaded Fab Kills . | . . . . . Fab Network Shutdowns . | . . . . . Hacking | -11 -10 -10 -10 -9 --------- Run | Scr Mat Min Exi Min Machines Accessed 11 | . 6 . 4 1 Terminals 6 | . 6 . . . Fabricators . | . . . . . Repair Stations . | . . . . . Recycling Units . | . . . . . Scanalyzers . | . . . . . Garrison Access . | . . . . . Total Hacks 67 | . 17 . 49 1 Successful 57 | . 7 . 49 1 Failed 10 | . 10 . . . Catastrophic 2 | . 2 . . . Database Lockouts . | . . . . . Manual 6 | . 6 . . . Terminals 17 | . 17 . . . Fabricators . | . . . . . Repair Stations . | . . . . . Recycling Units . | . . . . . Scanalyzers . | . . . . . Garrison Access . | . . . . . Terminal Hacks 57 | . 7 . 49 1 Record 49 | . . . 49 . Robot Analysis 2 | . 2 . . . Prototype ID Bank 1 | . 1 . . . Open Door 1 | . . . . 1 Level Access Points 1 | . 1 . . . Unreport Threat 2 | . 2 . . . Investigation Status 1 | . 1 . . . Fabricator Hacks . | . . . . . Repair Station Hacks . | . . . . . Recycling Unit Hacks . | . . . . . Scanalyzer . | . . . . . Garrison Access Hacks . | . . . . . Unauthorized Hacks . | . . . . . Terminals . | . . . . . Fabricators . | . . . . . Repair Stations . | . . . . . Recycling Units . | . . . . . Scanalyzers . | . . . . . Garrison Access . | . . . . . Data Cores Recovered . | . . . . . Used . | . . . . . Hacking Detections 6 | . 6 . . . Full Trace Events . | . . . . . Feedback Events . | . . . . . Feedback Blocked . | . . . . . Robot Schematics Acquired . | . . . . . Robots Built . | . . . . . Matter . | . . . . . Time . | . . . . . Total Robot Build Rating . | . . . . . Part Schematics Acquired . | . . . . . Parts Built . | . . . . . Matter . | . . . . . Time . | . . . . . Total Part Build Rating . | . . . . . Parts Repaired . | . . . . . Time . | . . . . . Parts Recycled . | . . . . . Recycled Matter . | . . . . . Retrieved Matter . | . . . . . Retrieved Components . | . . . . . Parts Scanalyzed . | . . . . . Part Schematics Acquired . | . . . . . Parts Damaged . | . . . . . Bothacking | -11 -10 -10 -10 -9 ------------ Run | Scr Mat Min Exi Min Used RIF Installer . | . . . . . Robots Hacked . | . . . . . Non-combat . | . . . . . Combat . | . . . . . Robot Hacks Applied . | . . . . . Relay Couplers Released . | . . . . . Robots Rewired . | . . . . . Allies Hacked . | . . . . . Hacks Repelled . | . . . . . Allies | -11 -10 -10 -10 -9 -------- Run | Scr Mat Min Exi Min Total Allies 1 | . . . . 1 Largest Group 1 | . . . . 1 Highest-Rated Group 31 | . . . . 31 Highest-Rated Ally 31 | . . . . 31 Total Orders . | . . . . . Ally Attacks 1 | . . . . 1 Total Damage 22 | . . . . 22 Kills 1 | . . . . 1 Allies Corrupted . | . . . . . Allies Melted . | . . . . . Intel | -11 -10 -10 -10 -9 ------- Run | Scr Mat Min Exi Min Robot Analysis Total 2 | . 2 . . . Derelict Logs Recovered 3 | . . 1 . 2 Drone Launches . | . . . . . Drone Recoveries . | . . . . . Exploration | -11 -10 -10 -10 -9 ------------- Run | Scr Mat Min Exi Min Turns Passed 5036 | 66 1591 1568 994 817 Spaces Moved 2807 | 39 855 839 622 452 Core 4 | 4 . . . . Treads 2803 | 35 855 839 622 452 Legs . | . . . . . Wheels . | . . . . . Hover . | . . . . . Flight . | . . . . . Fastest Speed 50 | 50 160 160 160 160 Average Speed 159 | 148 160 160 160 160 Slowest Speed 160 | 160 160 160 160 160 Overloaded Moves . | . . . . . Propulsion Burnouts . | . . . . . Robots Hopped . | . . . . . Cave-ins Triggered . | . . . . . Exploration Rate (%) 74 | 4 99 99 93 79 Regions Visited 4 Branch Regions 3 Pre-discovered Areas 2 | . . 1 1 . Known Exits Taken . | . . . . . Unknown Exits Taken 4 | 1 1 1 1 . Scrap Searched 4 | . . 3 . 1 Spaces Dug . | . . . . . Terrain Destroyed 128 | . 13 61 . 54 Melee . | . . . . . Projectile 3 | . . . . 3 AOE 125 | . 13 61 . 51 Terrain Rammed . | . . . . . Walls Destroyed . | . . . . . Machines Disabled . | . . . . . Actions | -11 -10 -10 -10 -9 --------- Run | Scr Mat Min Exi Min Total 3179 | 44 982 1024 621 508 Wait 210 | . 37 155 . 18 Move 2803 | 38 854 838 621 452 Hop . | . . . . . Pick Up 2 | . 1 1 . . Fast Attach 13 | 6 5 . . 2 Attach 1 | . . 1 . . Detach 1 | . 1 . . . Swap 12 | . 2 5 . 5 Drop 8 | . 4 . . 4 Fire 86 | . 48 19 . 19 Melee . | . . . . . Ram . | . . . . . Kick . | . . . . . Crush 1 | . 1 . . . Escape Stasis . | . . . . . Rewire . | . . . . . Trap . | . . . . . Miscellaneous 42 | . 29 5 . 8 Route ------- -11/Scrapyard -10/Materials (discovered 5 exits: *Mat x3 / [*Min x2]) -10/Mines (discovered 3 exits: *Mat x2 / *Exi) -10/Exiles (discovered 2 exits: *Min x2) -9/Mines (discovered 1 exit: [*Mat]) History --------- Turn | Location | Event 1 | -11/Scrapyard | Upgraded with Power slot (x1) 1 | -11/Scrapyard | Upgraded with Propulsion slot (x1) 1 | -11/Scrapyard | Upgraded with Utility slot (x1) 1 | -11/Scrapyard | Upgraded with Weapon slot (x1) 11 | -11/Scrapyard | Discovered new exit (range 17) 67 | -11/Scrapyard | Entered Materials 93 | -10/Materials | Discovered new exit (range 16) 160 | -10/Materials | Discovered new exit (range 10) 305 | -10/Materials | Build established: Mutant 494 | -10/Materials | Discovered new exit (range 13) 539 | -10/Materials | Discovered new exit (range 8) 667 | -10/Materials | Discovered new exit (range 17) 687 | -10/Materials | Reached level 2 714 | -10/Materials | Upgraded with Utility slot (x1) 1213 | -10/Materials | Identified exit to Materials 1658 | -10/Materials | Entered Mines 1757 | -10/Mines | Excavation squad dispatched 1757 | -10/Mines | A large section of the Mines collapsed 1795 | -10/Mines | Reached level 3 2000 | -10/Mines | Discovered exit to Materials (range 11) 2085 | -10/Mines | Upgraded with Weapon slot (x1) 2179 | -10/Mines | Received a Rocket Launcher from a helpful Derelict 2367 | -10/Mines | Discovered exit to Materials (range 9) 2378 | -10/Mines | Deemed a non-threat by the Exiles lab entrance 2380 | -10/Mines | Discovered new exit (range 5) 2932 | -10/Mines | Learned location of Zion (-7) 3226 | -10/Mines | Entered Exiles 3258 | -10/Exiles | Discovered new exit (range 14) 3318 | -10/Exiles | Met 8R-AWN 3350 | -10/Exiles | Met EX-HEX 3417 | -10/Exiles | Met EX-DEC 3503 | -10/Exiles | Discovered new exit (range 14) 3733 | -10/Exiles | Visited The Gauntlet 3940 | -10/Exiles | Met EX-BIN 4220 | -10/Exiles | Entered Mines 4222 | -9/Mines | Reached level 4 4289 | -9/Mines | Learned location of 1 exit from Proximity Caves 4299 | -9/Mines | Received a Mining Laser from a helpful Derelict 4632 | -9/Mines | Learned Materials emergency access door positions 4663 | -9/Mines | Discovered new exit (range 12) 4724 | -9/Mines | Met a Derelict who couldn't figure out how to use a Trap Extractor 4737 | -9/Mines | Upgraded with Utility slot (x1) 4868 | -9/Mines | Assembled infested the area 4913 | -9/Mines | Destroyed 16 combat bots 4966 | -9/Mines | Core integrity fell below 50% 4982 | -9/Mines | Core integrity fell below 20% 5037 | -9/Mines | Destroyed by D-53 Grenadier with Mini Grenade Launcher Last Messages --------------- [Achievement: Hunted] 04873_ as-05857 destroyed. 04873_ as-82055 destroyed. 04873_ as-09601 destroyed. 04876_ as-37848 destroyed. 04876_ as-26850 destroyed. 04876_ as-11729 destroyed. 04885_ as-62433 destroyed. 04888_ Destroyed Asb. Hover Unit. 04888_ as-13635 knocked back. 04892_ as-13635 destroyed. 04895_ Used Protomatter to restore core integrity (+15, depleted) 04897_ Acquired 19 matter. 04899_ Searching scrap... 04899_ Found Rocket Launcher. 04899_ Found 33 Matter. 04900_ Acquired 33 matter. 04949_ The unstable cave ceiling collapses. 05022_ D-53 Grenadier destroyed. [Achievement: Achiever] Map ----- +----------------------------------------------------+ | ??# #????# ##???## # # | | ??## #???## #####?????# # ## | | ???# ##?## ##????????## # | | ???# ### ##??????### # # | | ???# ###?#### # # # ####### | | ???# ### # #?????? | | ???# # ##??????? | | ???## #### #???????? | | ????## ##??# #???????? | | ?????# #??## ##???????? | | ?????# ## # ##??# ##????????? | | ?????## ###### ##???# ###????####?? | | ??????####?????# ###????#####??????# ?? | | ????############ ### ##????????########?# #?? | | ????# """ """ # ##?????????#""""""#?# #?? | | ????# " " """ # #??????????# ] !*=#?# #?? | | ????# "= " ### ### #??????????# ![ ##?# #?? | | ????# % ### ##?# #####??######[ [#### ### | | ????# #?# !#??# ## ## ## | | ????#*% [ ### #?#####%#??# X ## | | ????############?# #?????#=#??# ## | | ?????#######?????# #?????# #??# # | | ?????????????????# #?????# #??# | | ?????????????????# #????##d##?# | | ?????????????????# ##??## ;#?# # | | ?????????????????# ####@ #?# ## | | ?????????????????## ## =######### ########## | | ??????????????????## *%= #????????? | | ??????????????????## *# ####### #########? | | ?????????????????## ## ####### ## | | ?????????????????# t ### | | ?????????????????# ##?####???## | | ?????????????????## ##?????????## | | ??????????????????## #????###?### | | ???????????????????# #????# ####% | | ???????????????????## #?##### # =| ## | | ???????????????????## ### * [ ##### | | ??????????????????## [= % * ##???? | | ?????????????????## [ # # ##????? | | ?????????????????# ## * ## #?????? | | ?????????????????# ##### ########## #?????? | | ?????????????????## #???###????????# #?????? | | ??????????????????# #??????????????# #?????? | | ?????????????????## #??????????????# ?????? | | ??????????????#### ##??????????????# #?????? | | ?????????????## #??????????????? #?????? | | ????????????## ##??????????????? #?????? | | ???????????## #######???????????????? ?????? | | ???????##### ##??????????????????????""" ?????? | | ???????# #???????????????????????""" ?????? | +----------------------------------------------------+ Best States ------------- Heat Dissipation 73 Energy Generation 15 Energy Capacity 450 Matter Stores 350 Matter Capacity 350 Sight Range 17 Robot Scan Range 15 Terrain Scan Density 110 Resistance: KI 10 Resistance: TH 5 Resistance: EX 10 Evasion (%) 40 Recoil Reduction 2 Offensive Hacking 5 Item Schematics ----------------- None Robot Schematics ------------------ None Fabricated ------------ Nothing Alien Tech Used ----------------- None Achievements -------------- Achiever Hunted Challenges ------------ None RPGLIKE | -11 -10 -10 -10 -9 --------- Run | Scr Mat Min Exi Min Levels Raised 3 | . 1 1 . 1 XP Earned 8928 | 3000 2230 1725 200 1773 XP Spent 7255 | 2960 1515 1480 . 1300 Upgrades 28 | 14 5 7 . 2 Power Slot 1 | 1 . . . . Propulsion Slot 1 | 1 . . . . Utility Slot 3 | 1 1 . . 1 Weapon Slot 2 | 1 . 1 . . Core Integrity 7 | 2 1 4 . . Heat Dissipation 2 | 1 1 . . . Energy Storage 1 | . . 1 . . Matter Storage 1 | . . 1 . . Inventory Capacity 1 | . 1 . . . Sight Range 1 | 1 . . . . Sensor Range 1 | 1 . . . . Terrain Scan Density 1 | 1 . . . . Hack Attack % 1 | 1 . . . . KI Resistance % 2 | 1 1 . . . TH Resistance % 1 | 1 . . . . EX Resistance % 2 | 1 . . . 1 Protomatter Created 545 | . 355 93 . 97 Integrity Restored 860 | . 599 87 . 174 Core 840 | . 579 87 . 174 Parts 20 | . 20 . . . Protomatter Decayed 196 | . 152 . . 44 Game ------ Seed OpticalReinforcedClaw Manual? 0 Play Time 00:46:37 Cumulative 36.5 hours Start 2020.10.03 @ 20:46:52 End 2020.10.03 @ 21:31:03 Sessions 1 Manual Loads 0 Difficulty Rogue Special Mode Winter2019/RPGLIKE Game No. 17 Rogue 2 Adventurer 15 Explorer 0 Win Type - Total 0 Types 0/0/0/0/0/0/0/0/0 Lore% 26 Gallery% 29 Achievement% 25 Wizard Run 0 Options --------- ASCII 0 Keyboard 1 Movement Vi Keybinds 1 Fullscreen 2 Font 14/SmallcapsGlow Map View 84x54 Tactical HUD 1 Map Filters NONE Filters NONE Steam 1 RUN: 9fc0ccbe-3787-4075-9c28-8fc67cf86dd6